{"text_format":"2","workbook":"xlsx","n_sheets":2,"sheets":["岗位表","Sheet3"],"not_rendered":{"charts":0,"images":0,"macros":0,"external_links":0,"defined_names":1,"comments":0,"pivot_tables":0},"unopened":[],"bounds":{"document_bytes":16777216,"sheet_cells":100000,"run_cost":"one","rows_first":2000,"rows_last":500,"rows_between":2000,"halvings":0,"cell_chars":16384,"cell_head_chars":4096},"cells_cut":0,"cells_raw":0,"read":"whole","date_system":"1900"}

{"sheet":"岗位表","index":0,"n_rows":13,"n_cols":5,"rows_kept":13,"cut":false,"hidden":false,"merged":[[0,0,0,4],[12,0,12,2]]}
["肥东县教育体育局2023年公开招聘幼儿教师岗位表"]
["序号","岗位","岗位\n代码","服务\n人数","服务地点"]
[1,"幼儿教师1","0701",16,"实验幼儿园教育集团4人（其中1人需在杨塘学校中心幼儿园支教2年），新安幼教集团2人，东城幼教集团2人，撮镇幼教集团2人，龙塘幼教集团4人，东方之星幼教集团2人。"]
[2,"幼儿教师2","0702",16,"实验幼儿园教育集团4人（其中1人需在杨塘学校中心幼儿园支教2年），新安幼教集团2人，东城幼教集团2人，撮镇幼教集团2人，龙塘幼教集团4人，未来之光幼教集团2人。"]
[3,"幼儿教师3","0703",16,"实验幼儿园教育集团4人（其中1人需在桥头集学校中心幼儿园支教2年），新安幼教集团2人，东城幼教集团2人，撮镇幼教集团2人，龙塘幼教集团4人，未来之光幼教集团2人。"]
[4,"幼儿教师4","0704",16,"实验幼儿园教育集团4人（其中1人需在桥头集学校中心幼儿园支教2年），新安幼教集团2人，东城幼教集团2人，撮镇幼教集团2人，龙塘幼教集团4人，未来之光幼教集团2人。"]
[5,"幼儿教师5","0705",16,"实验幼儿园教育集团4人（其中1人需在元疃学校中心幼儿园支教2年），新安幼教集团2人，东城幼教集团2人，撮镇幼教集团2人，龙塘幼教集团4人，未来之光幼教集团2人。"]
[6,"幼儿教师6","0706",16,"实验幼儿园教育集团4人（其中1人需在白龙学校中心幼儿园支教2年），新安幼教集团2人，东城幼教集团2人，撮镇幼教集团2人，龙塘幼教集团4人，未来之光幼教集团2人。"]
[7,"幼儿教师7","0707",16,"实验幼儿园教育集团3人（其中1人需在石塘学校中心幼儿园支教2年），新安幼教集团2人，撮镇幼教集团2人，龙塘幼教集团2人，经开区幼教集团2人，三和幼教集团1人，未来之光幼教集团4人。"]
[8,"幼儿教师8","0708",16,"实验幼儿园教育集团3人（其中1人需在众兴学区中心幼儿园支教2年），新安幼教集团2人，撮镇幼教集团2人，龙塘幼教集团2人，经开区幼教集团1人，三和幼教集团2人，未来之光幼教集团4人。"]
[9,"幼儿教师9","0709",16,"实验幼儿园教育集团3人（其中1人需在古城学校中心幼儿园支教2年），新安幼教集团2人，撮镇幼教集团2人，龙塘幼教集团3人，经开区幼教集团1人，三和幼教集团1人，未来之光幼教集团4人。"]
[10,"幼儿教师10","0710",16,"实验幼儿园教育集团3人（其中1人需在白龙学校中心幼儿园支教2年），撮镇幼教集团2人，龙塘幼教集团3人，经开区幼教集团2人，三和幼教集团2人，未来之光幼教集团4人。"]
["合计",null,null,{"$f":"SUM(D3:D12)","v":160}]

{"sheet":"Sheet3","index":1,"n_rows":15,"n_cols":14,"rows_kept":15,"cut":false,"hidden":true,"merged":[]}
["实验幼儿园教育集团",36,4,4,4,4,4,4,3,3,3,3,{"$f":"SUM(C1:L1)","v":36},{"$f":"M1=B1","v":true}]
["肥东县未来之光幼儿园",8,null,null,1,1,1,1,1,1,1,1,{"$f":"SUM(C2:L2)","v":8},{"$f":"M2=B2","v":true}]
["店埠学区幼教集团",8,null,null,1,1,1,1,1,1,1,1,8,true]
["经济开发区幼儿园",42,5,5,4,4,4,4,4,4,4,4,42,true]
["撮镇学区幼儿园",12,2,2,1,1,1,1,1,1,1,1,12,true]
["三和小学附属幼儿园",8,null,null,1,1,1,1,1,1,1,1,8,true]
["龙塘学校附属幼儿园",40,4,4,4,4,4,4,4,4,4,4,40,true]
["宝翠园小学附属幼儿园",4,1,1,{"$nulls":4},1,1,null,null,4,true]
["长临河学区中心幼儿园",2,{"$nulls":8},1,1,2,true]
["石油学校附属幼儿园",4,1,1,1,1,{"$nulls":6},4,true]
["众兴学区中心幼儿园",2,{"$nulls":4},1,1,{"$nulls":4},2,true]
["桥头集学校中心幼儿园",2,{"$nulls":6},1,1,null,null,2,true]
["王铁学校中心幼儿园",2,{"$nulls":8},1,1,2,true]
[null,{"$f":"SUM(B1:B13)","v":170},{"$f":"SUM(C1:C13)","v":17},{"$f":"SUM(D1:D13)","v":17},17,17,17,17,17,17,17,17,170]
[null,null,1,2,3,4,5,6,7,8,9,10]